Workbook

Sheet Лист1
A1: Приложение № 2 к муниципальной программе Североуральского городского округа «Развитие жилищно-коммунального хозяйства и транспортного обслуживания населения, повышение энергетической эффективности и охрана окружающей среды в Североуральском городском округе» на 2014-2020 годы
A2: План мероприятий
A3: по выполнению муниципальной программы Североуральского городского округа
A4: «Развитие жилищно-коммунального хозяйства и транспортного обслуживания населения,
A5: повышение энергетической эффективности и охрана окружающей среды в Североуральском городском округе» на 2014-2020 годы
A7: № строки | B7: Наименование мероприятия/ Источники расходов на финансирование | C7: Объем расходов на выполнение мероприятия за счет всех источников ресурсного обеспечения, тыс. руб. | K7: Номер строки целевых показателей, на достижение которых направлены мероприятия
C8: Всего | D8: первый год | E8: второй год | F8: третий год | G8: четвертый год | H8: пятый год | I8: шестой год | J8: седьмой год
B9: ВСЕГО по муниципальной программе, в том числе: | C9: =C22+C71+C115+C136+C162+C198+C234+C252 -> 612,717.3 | D9: 138,078.3 | E9: 86,985.5 | F9: 56,041.5 | G9: 82,903.0 | H9: 82,903.0 | I9: 82,903.0 | J9: 82,903.0
B10: местный бюджет | C10: =C24+C72+C116+C137+C165+C199+C235+C254 -> 572,468.0 | D10: =D24+D72+D116+D137+D165+D199+D235+D254 -> 98,231.0 | E10: 86,918.5 | F10: 55,974.5 | G10: 82,836.0 | H10: 82,836.0 | I10: 82,836.0 | J10: 82,836.0
B11: областной бюджет | C11: =C73+C138+C163+C253 -> 14,576.0 | D11: 14,174.0 | E11: 67.0 | F11: 67.0 | G11: 67.0 | H11: 67.0 | I11: 67.0 | J11: 67.0
B12: федеральный бюджет | C12: =C74+C139+C164 -> 25,673.3 | D12: 25,673.3 | E12: 0.0 | F12: 0.0 | G12: 0.0 | H12: 0.0 | I12: 0.0 | J12: 0.0
B13: Капитальные вложения | C13: =C26+C76+C118+C141+C167+C201+C237+C256 -> 280,347.4 | D13: 90,823.5 | E13: 39,950.4 | F13: 8,425.5 | G13: 35,287.0 | H13: 35,287.0 | I13: 35,287.0 | J13: 35,287.0
B14: местный бюджет | C14: =D14+E14+F14+G14+H14+I14+J14 -> 240,729.9 | D14: =D27+D77+D119+D142+D168+D202+D238+D257 -> 51,206.0 | E14: 39,950.4 | F14: 8,425.5 | G14: 35,287.0 | H14: 35,287.0 | I14: 35,287.0 | J14: 35,287.0
B15: областной бюджет | C15: =C78+C143 -> 13,944.2 | D15: 13,944.2 | E15: 0.0 | F15: 0.0 | G15: 0.0 | H15: 0.0 | I15: 0.0 | J15: 0.0
B16: федеральный бюджет | C16: 25,673.3 | D16: 25,673.3 | E16: 0.0 | F16: 0.0 | G16: 0.0 | H16: 0.0 | I16: 0.0 | J16: 0.0
B17: Прочие нужды | C17: =SUM(C18:C19) -> 332,369.9 | D17: =SUM(D18:D19) -> 47,254.8 | E17: =SUM(E18:E19) -> 47,035.1 | F17: 47,616.0 | G17: 47,616.0 | H17: 47,616.0 | I17: 47,616.0 | J17: 47,616.0
B18: местный бюджет | C18: =SUM(D18:J18) -> 331,738.1 | D18: =D39+D94+D128+D160+D211+D247+D267+D179 -> 47,025.0 | E18: 46,968.1 | F18: 47,549.0 | G18: 47,549.0 | H18: 47,549.0 | I18: 47,549.0 | J18: 47,549.0
B19: областной бюджет | C19: =SUM(D19:J19) -> 631.8 | D19: =D266 -> 229.8 | E19: =E266 -> 67.0 | F19: 67.0 | G19: 67.0 | H19: 67.0 | I19: 67.0 | J19: 67.0
B20: федеральный бюджет | C20: =C95 -> 0.0 | D20: 0.0 | E20: 0.0 | F20: 0.0 | G20: 0.0 | H20: 0.0 | I20: 0.0 | J20: 0.0
A21: Подпрограмма 1: Комплексное благоустройство территории Североуральского городского округа
B22: Всего по подпрограмме 1, | C22: =SUM(C24) -> 178,459.7 | D22: =SUM(D24) -> 22,211.0 | E22: =SUM(E24) -> 22,806.2 | F22: 26,688.5 | G22: 26,688.5 | H22: 26,688.5 | I22: 26,688.5 | J22: 26,688.5
B23: в том числе:
B24: местный бюджет | C24: =SUM(D24:J24) -> 178,459.7 | D24: =SUM(D27+D39) -> 22,211.0 | E24: =SUM(E27+E39) -> 22,806.2 | F24: 26,688.5 | G24: 26,688.5 | H24: 26,688.5 | I24: 26,688.5 | J24: 26,688.5
A25: 1. Капитальные вложения
B26: Всего по направлению «Капитальные вложения» всего, в том числе | C26: =SUM(D26:J26) -> 36,447.7 | D26: =SUM(D27) -> 2,200.0 | E26: 2,120.2 | F26: 6,425.5 | G26: 6,425.5 | H26: 6,425.5 | I26: 6,425.5 | J26: 6,425.5
B27: местный бюджет | C27: =SUM(D27:J27) -> 36,447.7 | D27: =SUM(D36) -> 2,200.0 | E27: =SUM(E36) -> 2,120.2 | F27: 6,425.5 | G27: 6,425.5 | H27: 6,425.5 | I27: 6,425.5 | J27: 6,425.5
A28: 1.1. Бюджетные инвестиции в объекты капитального строительства
B29: Бюджетные инвестиции в объекты капитального строительства всего, в том числе | C29: 0 | D29: 0 | E29: 0 | F29: 0 | G29: 0 | H29: 0 | I29: 0 | J29: 0
B30: местный бюджет | C30: 0 | D30: 0 | E30: 0 | F30: 0 | G30: 0 | H30: 0 | I30: 0 | J30: 0
A31: 1.2. Иные капитальные вложения
B32: Всего | C32: =SUM(D32:J32) -> 36,447.7 | D32: =SUM(D33) -> 2,200.0 | E32: =SUM(E33) -> 2,120.2 | F32: 6,425.5 | G32: 6,425.5 | H32: 6,425.5 | I32: 6,425.5 | J32: 6,425.5
B33: местный бюджет | C33: =SUM(D33:J33) -> 36,447.7 | D33: =SUM(D36) -> 2,200.0 | E33: =SUM(E36) -> 2,120.2 | F33: 6,425.5 | G33: 6,425.5 | H33: 6,425.5 | I33: 6,425.5 | J33: 6,425.5
A34: Мероприятие 1 Благоустройство дворовых территорий Североуральского городского округа
B35: Всего, из них | C35: =SUM(D35:J35) -> 36,447.7 | D35: =SUM(D36) -> 2,200.0 | E35: 2,120.2 | F35: 6,425.5 | G35: 6,425.5 | H35: 6,425.5 | I35: 6,425.5 | J35: 6,425.5 | K35: 4
B36: местный бюджет | C36: =SUM(D36:J36) -> 36,447.7 | D36: 2,200.0 | E36: 2,120.2 | F36: 6,425.5 | G36: =SUM(F36) -> 6,425.5 | H36: =SUM(G36) -> 6,425.5 | I36: =SUM(H36) -> 6,425.5 | J36: =SUM(I36) -> 6,425.5
A37: 3. Прочие нужды
B38: Всего по направлению «Прочие нужды», всего, в том числе: | C38: =SUM(D38:J38) -> 142,012.0 | D38: =SUM(D39) -> 20,011.0 | E38: =SUM(E39) -> 20,686.0 | F38: 20,263.0 | G38: 20,263.0 | H38: 20,263.0 | I38: 20,263.0 | J38: 20,263.0
B39: местный бюджет | C39: =SUM(D39:J39) -> 142,012.0 | D39: =SUM(D42+D45+D48+D51) -> 20,011.0 | E39: 20,686.0 | F39: 20,263.0 | G39: 20,263.0 | H39: 20,263.0 | I39: 20,263.0 | J39: 20,263.0
A40: Мероприятие 2 - Уличное освещение
B41: Всего, из них | C41: =SUM(D41:J41) -> 90,499.0 | D41: =SUM(D42) -> 11,900.0 | E41: 13,000.0 | F41: 13,119.8 | G41: 13,119.8 | H41: 13,119.8 | I41: 13,119.8 | J41: 13,119.8 | K41: 7
B42: местный бюджет | C42: =SUM(D42:J42) -> 90,499.0 | D42: 11,900.0 | E42: 13,000.0 | F42: 13,119.8 | G42: =SUM(F42) -> 13,119.8 | H42: =SUM(G42) -> 13,119.8 | I42: =SUM(H42) -> 13,119.8 | J42: =SUM(I42) -> 13,119.8
A43: Мероприятие 3 - Озеленение (цветники, валка сухих деревьев)
B44: Всего, из них | C44: =SUM(D44:J44) -> 15,548.6 | D44: =SUM(D45) -> 2,696.2 | E44: 2,056.4 | F44: 2,159.2 | G44: 2,159.2 | H44: 2,159.2 | I44: 2,159.2 | J44: 2,159.2 | K44: 9
B45: местный бюджет | C45: =SUM(D45:J45) -> 15,548.6 | D45: 2,696.2 | E45: 2,056.4 | F45: 2,159.2 | G45: =SUM(F45) -> 2,159.2 | H45: =SUM(G45) -> 2,159.2 | I45: =SUM(H45) -> 2,159.2 | J45: =SUM(I45) -> 2,159.2
A46: Мероприятие 4 - Организация и содержание мест захоронения
B47: Всего, из них | C47: =SUM(D47:J47) -> 15,587.3 | D47: =SUM(D48) -> 1,995.0 | E47: 2,594.8 | F47: 2,199.5 | G47: 2,199.5 | H47: 2,199.5 | I47: 2,199.5 | J47: 2,199.5 | K47: 14
B48: местный бюджет | C48: =SUM(D48:J48) -> 15,587.3 | D48: 1,995.0 | E48: 2,594.8 | F48: 2,199.5 | G48: =SUM(F48) -> 2,199.5 | H48: =SUM(G48) -> 2,199.5 | I48: =SUM(H48) -> 2,199.5 | J48: =SUM(I48) -> 2,199.5
A49: Мероприятие 5 - Прочие мероприятия по благоустройству
B50: Всего, в том числе: | C50: =SUM(D50:J50) -> 20,377.1 | D50: =SUM(D51) -> 3,419.8 | E50: 3,034.8 | F50: =SUM(F51) -> 2,784.5 | G50: 2,784.5 | H50: 2,784.5 | I50: 2,784.5 | J50: 2,784.5 | K50: 5,11,12,13,15
B51: местный бюджет | C51: =SUM(D51:J51) -> 20,377.1 | D51: =SUM(D54+D57+D60+D63+D66+D69) -> 3,419.8 | E51: 3,034.8 | F51: 2,784.5 | G51: =SUM(G54+G57+G60+G63+G66+G69) -> 2,784.5 | H51: 2,784.5 | I51: 2,784.5 | J51: 2,784.5
A52: - Содержание памятников
B53: Всего: | C53: =SUM(C54) -> 1522.5 | D53: =SUM(D54) -> 200.0 | E53: =SUM(E54) -> 220.0 | F53: =SUM(F54) -> 220.5 | G53: =SUM(G54) -> 220.5 | H53: =SUM(H54) -> 220.5 | I53: 220.5 | J53: 220.5 | K53: 15
B54: местный бюджет | C54: =SUM(D54:J54) -> 1522.5 | D54: 200.0 | E54: 220.0 | F54: 220.5 | G54: 220.5 | H54: =SUM(G54) -> 220.5 | I54: =SUM(H54) -> 220.5 | J54: =SUM(I54) -> 220.5
A55: - Проведение комплекса профилактических работ по уходу за объектами благоустройства
B56: Всего: | C56: =SUM(C57) -> 871.3 | D56: =SUM(D57) -> 674.3 | E56: =SUM(E57) -> 31.5 | F56: 33.1 | G56: 33.1 | H56: 33.1 | I56: 33.1 | J56: 33.1 | K56: 5
B57: местный бюджет | C57: =SUM(D57:J57) -> 871.3 | D57: 674.3 | E57: 31.5 | F57: 33.1 | G57: 33.1 | H57: =SUM(G57) -> 33.1 | I57: =SUM(H57) -> 33.1 | J57: =SUM(I57) -> 33.1
A58: - Регулирование численности безнадзорных животных
B59: Всего: | C59: =SUM(C60) -> 3781.5 | D59: =SUM(D60) -> 500.0 | E59: =SUM(E60) -> 525.0 | F59: 551.3 | G59: 551.3 | H59: 551.3 | I59: 551.3 | J59: 551.3 | K59: 11
B60: местный бюджет | C60: =SUM(D60:J60) -> 3781.5 | D60: 500.0 | E60: 525.0 | F60: 551.3 | G60: 551.3 | H60: =SUM(G60) -> 551.3 | I60: =SUM(H60) -> 551.3 | J60: =SUM(I60) -> 551.3
A61: - Содержание биоямы (скотомогильник)
B62: Всего: | C62: =SUM(C63) -> 589.9 | D62: =SUM(D63) -> 130.4 | E62: =SUM(E63) -> 73.5 | F62: 77.2 | G62: 77.2 | H62: 77.2 | I62: 77.2 | J62: 77.2 | K62: 13
B63: местный бюджет | C63: =SUM(D63:J63) -> 589.9 | D63: 130.4 | E63: 73.5 | F63: 77.2 | G63: 77.2 | H63: =SUM(G63) -> 77.2 | I63: =SUM(H63) -> 77.2 | J63: =SUM(I63) -> 77.2
A64: - Обустройство новогодних городков
B65: Всего: | C65: =SUM(C66) -> 13,111.8 | D65: =SUM(D66) -> 1,685.5 | E65: =SUM(E66) -> 2,134.8 | F65: 1,858.3 | G65: 1,858.3 | H65: 1,858.3 | I65: 1,858.3 | J65: 1,858.3 | K65: 5
B66: местный бюджет | C66: =SUM(D66:J66) -> 13,111.8 | D66: 1,685.5 | E66: 2,134.8 | F66: 1,858.3 | G66: 1,858.3 | H66: =SUM(G66) -> 1,858.3 | I66: =SUM(H66) -> 1,858.3 | J66: =SUM(I66) -> 1,858.3
A67: - Акарицидная обработка общественных мест
B68: Всего: | C68: =SUM(C69) -> 500.1 | D68: =SUM(D69) -> 229.6 | E68: =SUM(E69) -> 50.0 | F68: 44.1 | G68: 44.1 | H68: 44.1 | I68: 44.1 | J68: 44.1 | K68: 12
B69: местный бюджет | C69: =SUM(D69:J69) -> 500.1 | D69: 229.6 | E69: 50.0 | F69: 44.1 | G69: 44.1 | H69: =SUM(G69) -> 44.1 | I69: =SUM(H69) -> 44.1 | J69: =SUM(I69) -> 44.1
A70: Подпрограмма 2: Муниципальная программа по энергосбережению и повышению энергетической эффективности объектов Североуральского городского округа
B71: Всего по подпрограмме 2, в том числе | C71: =SUM(D71:J71) -> 33,349.5 | D71: =SUM(D72:D74) -> 4,203.0 | E71: =SUM(E72:E74) -> 6,467.5 | F71: 4,535.8 | G71: 4,535.8 | H71: 4,535.8 | I71: 4,535.8 | J71: 4,535.8
B72: местный бюджет | C72: =SUM(D72:J72) -> 33,349.5 | D72: =SUM(D77+D94) -> 4,203.0 | E72: 6,467.5 | F72: =F77+F94 -> 4,535.8 | G72: 4,535.8 | H72: 4,535.8 | I72: 4,535.8 | J72: 4,535.8
B73: областной бюджет | C73: =SUM(D73:J73) -> 0.0 | D73: =SUM(D78) -> 0.0 | E73: =SUM(E78) -> 0.0 | F73: 0.0 | G73: 0.0 | H73: 0.0 | I73: 0.0 | J73: 0.0
B74: федеральный бюджет | C74: =SUM(D74:J74) -> 0.0 | D74: =SUM(D79+D95) -> 0.0 | E74: 0.0 | F74: 0.0 | G74: 0.0 | H74: 0.0 | I74: 0.0 | J74: 0.0
A75: 1. Капитальные вложения
B76: Всего по направлению «Капитальные вложения», всего, в том числе | C76: =SUM(D76:J76) -> 14,431.0 | D76: =SUM(D77:D79) -> 431.0 | E76: =SUM(E77:E79) -> 4,000.0 | F76: 2,000.0 | G76: 2,000.0 | H76: 2,000.0 | I76: 2,000.0 | J76: 2,000.0
B77: местный бюджет | C77: =SUM(D77:J77) -> 14,431.0 | D77: =SUM(D84) -> 431.0 | E77: =SUM(E84) -> 4,000.0 | F77: 2,000.0 | G77: 2,000.0 | H77: 2,000.0 | I77: 2,000.0 | J77: 2,000.0
B78: областной бюджет | C78: =SUM(D78:J78) -> 0.0 | D78: =SUM(D85) -> 0.0 | E78: =SUM(E85) -> 0.0 | F78: 0.0 | G78: 0.0 | H78: 0.0 | I78: 0.0 | J78: 0.0
B79: федеральный бюджет | C79: =SUM(D79:J79) -> 0.0 | D79: =SUM(D86) -> 0.0 | E79: =SUM(E86) -> 0.0 | F79: 0.0 | G79: 0.0 | H79: 0.0 | I79: 0.0 | J79: 0.0
A80: 1.1. Бюджетные инвестиции в объекты капитального строительства
B81: Бюджетные инвестиции в объекты капитального строительства всего | C81: 0 | D81: 0 | E81: 0 | F81: 0 | G81: 0 | H81: 0 | I81: 0 | J81: 0
A82: 1.2. Иные капитальные вложения
B83: Всего, в том числе | C83: =SUM(C84:C86) -> 14,431.0 | D83: =SUM(D84:D86) -> 431.0 | E83: =SUM(E84:E86) -> 4,000.0 | F83: 2,000.0 | G83: 2,000.0 | H83: 2,000.0 | I83: 2,000.0 | J83: 2,000.0
B84: местный бюджет | C84: =SUM(D84:J84) -> 14,431.0 | D84: =SUM(D89) -> 431.0 | E84: =SUM(E89) -> 4,000.0 | F84: 2,000.0 | G84: 2,000.0 | H84: 2,000.0 | I84: 2,000.0 | J84: 2,000.0
B85: областной бюджет | C85: =SUM(D85:J85) -> 0.0 | D85: =SUM(D90) -> 0.0 | E85: =SUM(E90) -> 0.0 | F85: 0.0 | G85: 0.0 | H85: 0.0 | I85: 0.0 | J85: 0.0
B86: федеральный бюджет | C86: =SUM(D86:J86) -> 0.0 | D86: =SUM(D91) -> 0.0 | E86: =SUM(E91) -> 0.0 | F86: 0.0 | G86: 0.0 | H86: 0.0 | I86: 0.0 | J86: 0.0
A87: Мероприятие 6- Реконструкция, модернизация водопроводных сетей, сетей системы водоотведения с заменой (без замены) оборудования с более высоким КПД, установка регулируемого привода, тепловых сетей с использованием энергетически эффективных технологий по тепловой изоляции, восстановление тепловой изоляции с применением эффективных технологий
B88: Всего, из них | C88: =SUM(C89:C91) -> 14,431.0 | D88: =SUM(D89:D91) -> 431.0 | E88: =SUM(E89:E91) -> 4,000.0 | F88: 2,000.0 | G88: 2,000.0 | H88: 2,000.0 | I88: 2,000.0 | J88: 2,000.0 | K88: 27
B89: местный бюджет | C89: =SUM(D89:J89) -> 14,431.0 | D89: 431.0 | E89: 4,000.0 | F89: 2,000.0 | G89: =SUM(F89) -> 2,000.0 | H89: 2,000.0 | I89: 2,000.0 | J89: 2,000.0
B90: областной бюджет | C90: =SUM(D90:J90) -> 0.0 | D90: 0.0 | E90: 0.0 | F90: =SUM(E90*1.05) -> 0.0 | G90: 0.0 | H90: 0.0 | I90: 0.0 | J90: 0.0
B91: федеральный бюджет | C91: =SUM(D91:J91) -> 0.0 | D91: 0.0 | E91: 0.0 | F91: 0.0 | G91: =SUM(F91) -> 0.0 | H91: =SUM(G91) -> 0.0 | I91: =SUM(H91) -> 0.0 | J91: =SUM(I91) -> 0.0
A92: 3. Прочие нужды
B93: Всего по направлению «Прочие нужды», всего, в том числе: | C93: =SUM(D93:J93) -> 18,918.5 | D93: =SUM(D94:D95) -> 3,772.0 | E93: =SUM(E94:E95) -> 2,467.5 | F93: 2,535.8 | G93: 2,535.8 | H93: 2,535.8 | I93: 2,535.8 | J93: 2,535.8
B94: местный бюджет | C94: =SUM(D94:J94) -> 18,918.5 | D94: =SUM(D98+D106+D110+D113) -> 3,772.0 | E94: 2,467.5 | F94: 2,535.8 | G94: 2,535.8 | H94: 2,535.8 | I94: 2,535.8 | J94: 2,535.8
B95: федеральный бюджет | C95: =SUM(D95:J95) -> 0.0 | D95: =SUM(D99+D107) -> 0.0 | E95: =SUM(E99+E107) -> 0.0 | F95: 0.0 | G95: 0.0 | H95: 0.0 | I95: 0.0 | J95: 0.0
A96: Мероприятие 7 - Оснащение зданий (строений, сооружений), находящихся в муниципальной собственности, многоквартирных жилых домов, жилых помещений, квартир приборами учета используемых энергетических ресурсов, в том числе разработка проектно-сметной документации
B97: всего, в том числе: | C97: =SUM(D97:J97) -> 3,794.0 | D97: =SUM(D98:D99) -> 1,200.0 | E97: 415.0 | F97: 435.8 | G97: 435.8 | H97: 435.8 | I97: 435.8 | J97: 435.8 | K97: 19,21,22,23,24
B98: местный бюджет | C98: =SUM(D98:J98) -> 3,794.0 | D98: =SUM(D103) -> 1,200.0 | E98: =SUM(E103) -> 415.0 | F98: 435.8 | G98: 435.8 | H98: 435.8 | I98: 435.8 | J98: 435.8
B99: областной бюджет | C99: =SUM(D99:J99) -> 0.0 | D99: =SUM(D100) -> 0.0 | E99: =SUM(E100) -> 0.0 | F99: 0.0 | G99: 0.0 | H99: 0.0 | I99: 0.0 | J99: 0.0
B100: федеральный бюджет | C100: =SUM(D100:J100) -> 0.0 | D100: 0.0 | E100: 0.0 | F100: 0.0 | G100: =SUM(F100) -> 0.0 | H100: =SUM(G100) -> 0.0 | I100: =SUM(H100) -> 0.0 | J100: =SUM(I100) -> 0.0
A101: - Оснащение жилых домов (субсидии)
B102: Всего: | C102: =SUM(C103) -> 3,794.0 | D102: 1,200.0 | E102: 415.0 | F102: 435.8 | G102: 435.8 | H102: 435.8 | I102: 435.8 | J102: 435.8
B103: местный бюджет | C103: =SUM(D103:J103) -> 3,794.0 | D103: 1,200.0 | E103: 415.0 | F103: 435.8 | G103: =SUM(F103) -> 435.8 | H103: =SUM(G103) -> 435.8 | I103: =SUM(H103) -> 435.8 | J103: =SUM(I103) -> 435.8
A104: Мероприятие 9 - Закупка и установка осветительного оборудования с заменой неэффективного на энергосберегающее, в том числе замена ламп накаливания на энергосберегающие, модернизация сетей уличного освещения, проектно-сметные работы, экспертиза проектно-сметной документации
B105: всего, из них: | C105: =D105+E105+F105+G105+H105+I105+J105 -> 14,642.0 | D105: =SUM(D106:D107) -> 2,142.0 | E105: =SUM(E106:E107) -> 2,000.0 | F105: 2,100.0 | G105: 2,100.0 | H105: 2,100.0 | I105: 2,100.0 | J105: 2,100.0 | K105: 26
B106: местный бюджет | C106: =D106+E106 -> 4,142.0 | D106: 2,142.0 | E106: 2,000.0 | F106: 2,100.0 | G106: =SUM(F106) -> 2,100.0 | H106: 2,100.0 | I106: 2,100.0 | J106: 2,100.0
B107: областной бюджет | C107: =D107+E107 -> 0.0 | D107: 0.0 | E107: 0.0 | F107: 0.0 | G107: 0.0 | H107: 0.0 | I107: 0.0 | J107: 0.0
A108: Мероприятие 10 - Разработка схемы водоснабжения Североуральского городского округа
B109: всего, из них: | C109: =SUM(D109:J109) -> 380.0 | D109: =SUM(D110) -> 380.0 | E109: =SUM(E110) -> 0.0 | F109: 0.0 | G109: 0.0 | H109: 0.0 | I109: 0.0 | J109: 0.0 | K109: 28
B110: местный бюджет | C110: =SUM(D110:J110) -> 380.0 | D110: 380.0 | E110: 0.0 | F110: 0.0 | G110: =SUM(F110) -> 0.0 | H110: =SUM(G110) -> 0.0 | I110: =SUM(H110) -> 0.0 | J110: =SUM(I110) -> 0.0
A111: Мероприятие 11 - Прочие мероприятия (оформление актов выбора трассы под строительство водопроводов, сетей уличного освещения, газопроводов и т.п.)
B112: всего, из них: | C112: =SUM(D112:J112) -> 102.5 | D112: =SUM(D113) -> 50.0 | E112: =SUM(E113) -> 52.5 | F112: 0.0 | G112: 0.0 | H112: 0.0 | I112: 0.0 | J112: 0.0 | K112: 29
B113: местный бюджет | C113: =SUM(D113:J113) -> 102.5 | D113: 50.0 | E113: 52.5 | F113: 0.0 | G113: =SUM(F113) -> 0.0 | H113: =SUM(G113) -> 0.0 | I113: =SUM(H113) -> 0.0 | J113: =SUM(I113) -> 0.0
A114: Подпрограмма 3: Развитие лесного хозяйства на территории Североуральского городского округа
B115: Всего по подпрограмме 1, всего, в том числе | C115: =SUM(C116:C116) -> 2,707.0 | D115: =SUM(D116) -> 1,513.0 | E115: =SUM(E116) -> 191.0 | F115: 200.6 | G115: 200.6 | H115: 200.6 | I115: 200.6 | J115: 200.6
B116: местный бюджет | C116: =SUM(D116:J116) -> 2,707.0 | D116: =SUM(D128) -> 1,513.0 | E116: =SUM(E128) -> 191.0 | F116: 200.6 | G116: 200.6 | H116: 200.6 | I116: 200.6 | J116: 200.6
A117: 1. Капитальные вложения
B118: Всего по направлению «Капитальные вложения», всего, в том числе | C118: 0 | D118: 0 | E118: 0 | F118: 0 | G118: 0 | H118: 0 | I118: 0 | J118: 0
B119: местный бюджет | C119: 0 | D119: 0 | E119: 0 | F119: 0 | G119: 0 | H119: 0 | I119: 0 | J119: 0
A120: 1.1. Бюджетные инвестиции в объекты капитального строительства
B121: Бюджетные инвестиции в объекты капитального строительства всего, в том числе: | C121: =SUM(C122) -> 0 | D121: =SUM(D122) -> 0 | E121: 0 | F121: 0 | G121: 0 | H121: 0 | I121: 0 | J121: 0
B122: местный бюджет | C122: 0 | D122: 0 | E122: 0 | F122: 0 | G122: 0 | H122: 0 | I122: 0 | J122: 0
A123: 1.2. Иные капитальные вложения
B124: Всего, в том числе: | C124: =SUM(A126) -> 0 | D124: 0 | E124: 0 | F124: 0 | G124: 0 | H124: 0 | I124: 0 | J124: 0
B125: местный бюджет | C125: 0 | D125: 0 | E125: 0 | F125: 0 | G125: 0 | H125: 0 | I125: 0 | J125: 0
A126: 3. Прочие нужды
B127: Всего, из них | C127: =SUM(C128:C128) -> 2,707.0 | D127: 1,513.0 | E127: 191.0 | F127: 200.6 | G127: 200.6 | H127: 200.6 | I127: 200.6 | J127: 200.6
B128: местный бюджет | C128: =SUM(D128:J128) -> 2,707.0 | D128: =SUM(D131) -> 1,513.0 | E128: =SUM(E131) -> 191.0 | F128: 200.6 | G128: 200.6 | H128: 200.6 | I128: 200.6 | J128: 200.6
A129: Мероприятие 12 - Развитие лесного хозяйства на территории Североуральского городского округа
B130: Всего, в том числе: | C130: =SUM(D130:J130) -> 2,707.0 | D130: =SUM(D131) -> 1,513.0 | E130: =SUM(E131) -> 191.0 | F130: 200.6 | G130: 200.6 | H130: 200.6 | I130: 200.6 | J130: 200.6 | K130: 33
B131: местный бюджет | C131: =SUM(D131:J131) -> 2,707.0 | D131: =SUM(D134) -> 1,513.0 | E131: =SUM(E134) -> 191.0 | F131: 200.6 | G131: 200.6 | H131: 200.6 | I131: 200.6 | J131: 200.6
A132: - Межевание городских лесов, постановка на кадастровый учет
B133: Всего: | C133: =SUM(C134) -> 2,707.0 | D133: =SUM(D134) -> 1,513.0 | E133: =SUM(E134) -> 191.0 | F133: 200.6 | G133: 200.6 | H133: 200.6 | I133: 200.6 | J133: 200.6 | K133: 33
B134: местный бюджет | C134: =SUM(D134:J134) -> 2,707.0 | D134: 1,513.0 | E134: 191.0 | F134: 200.6 | G134: =SUM(F134) -> 200.6 | H134: =SUM(G134) -> 200.6 | I134: =SUM(H134) -> 200.6 | J134: =SUM(I134) -> 200.6
A135: Подпрограмма 4 : Переселение граждан на территории Североуральского городского округа из аварийного жилищного фонда с учетом необходимости развития малоэтажного жилищного строительства
B136: Всего по подпрограмме 4, всего, в том числе | C136: =SUM(C137:C139) -> 229,468.7 | D136: =SUM(D137:D139) -> 88,192.5 | E136: 33,830.2 | F136: 0.0 | G136: 26861.5 | H136: 26861.5 | I136: 26861.5 | J136: 26861.5
B137: местный бюджет | C137: =SUM(D137:J137) -> 189,851.2 | D137: =SUM(D142) -> 48,575.0 | E137: =SUM(E142) -> 33,830.2 | F137: 0.0 | G137: 26861.5 | H137: 26861.5 | I137: 26861.5 | J137: 26861.5
B138: областной бюджет | C138: =SUM(D138:J138) -> 13,944.2 | D138: =SUM(D143) -> 13,944.2 | E138: =SUM(E143) -> 0.0 | F138: 0.0 | G138: 0.0 | H138: 0.0 | I138: 0.0 | J138: 0.0
B139: федеральный бюджет | C139: =SUM(D139:J139) -> 25,673.3 | D139: =SUM(D144) -> 25,673.3 | E139: =SUM(E144) -> 0.0 | F139: 0.0 | G139: 0.0 | H139: 0.0 | I139: 0.0 | J139: 0.0
A140: 1. Капитальные вложения
B141: Всего по направлению «Капитальные вложения», всего, в том числе | C141: =SUM(C142:C144) -> 229,468.7 | D141: =SUM(D142:D144) -> 88,192.5 | E141: =SUM(E142:E144) -> 33,830.2 | F141: 0.0 | G141: 26861.5 | H141: 26861.5 | I141: 26861.5 | J141: 26861.5
B142: местный бюджет | C142: =SUM(D142:J142) -> 189,851.2 | D142: =SUM(D155) -> 48,575.0 | E142: =SUM(E155) -> 33,830.2 | F142: 0.0 | G142: 26861.5 | H142: 26861.5 | I142: 26861.5 | J142: 26861.5
B143: областной бюджет | C143: =SUM(D143:J143) -> 13,944.2 | D143: =SUM(D156) -> 13,944.2 | E143: =SUM(E156) -> 0.0 | F143: 0.0 | G143: 0.0 | H143: 0.0 | I143: 0.0 | J143: 0.0
B144: федеральный бюджет | C144: =SUM(D144:J144) -> 25,673.3 | D144: =SUM(D157) -> 25,673.3 | E144: =SUM(E157) -> 0.0 | F144: 0.0 | G144: 0.0 | H144: 0.0 | I144: 0.0 | J144: 0.0
A145: 1.1. Бюджетные инвестиции в объекты капитального строительства
B146: Бюджетные инвестиции в объекты капитального строительства всего, в том числе: | C146: =SUM(C147) -> 0 | D146: =SUM(D147) -> 0 | E146: 0 | F146: 0 | G146: 0 | H146: 0 | I146: 0 | J146: 0
B147: местный бюджет | C147: 0 | D147: 0 | E147: 0 | F147: 0 | G147: 0 | H147: 0 | I147: 0 | J147: 0
A148: 1.2. Иные капитальные вложения
B149: Всего, в том числе: | C149: =SUM(D149:J149) -> 229,468.7 | D149: =SUM(D150:D152) -> 88,192.5 | E149: =SUM(E150:E152) -> 33,830.2 | F149: 0.0 | G149: 26,861.5 | H149: 26,861.5 | I149: 26,861.5 | J149: 26,861.5
B150: местный бюджет | C150: =SUM(D150:J150) -> 189,851.2 | D150: =SUM(D155) -> 48,575.0 | E150: =SUM(E155) -> 33,830.2 | F150: 0.0 | G150: 26,861.5 | H150: 26,861.5 | I150: 26,861.5 | J150: 26,861.5
B151: областной бюджет | C151: =SUM(D151:J151) -> 13,944.2 | D151: =SUM(D156) -> 13,944.2 | E151: =SUM(E156) -> 0.0 | F151: 0.0 | G151: 0.0 | H151: 0.0 | I151: 0.0 | J151: 0.0
B152: федеральный бюджет | C152: =SUM(D152:J152) -> 25,673.3 | D152: =SUM(D157) -> 25,673.3 | E152: =SUM(E157) -> 0.0 | F152: 0.0 | G152: 0.0 | H152: 0.0 | I152: 0.0 | J152: 0.0
A153: Мероприятие 13 - Переселение граждан на территории Североуральского городского округа из аварийного жилищного фонда с учетом необходимости развития малоэтажного жилищного строительства
B154: Всего по направлению «Капитальные вложения», всего, в том числе | C154: =SUM(D154:J154) -> 229,468.7 | D154: =SUM(D155:D157) -> 88,192.5 | E154: =SUM(E155:E157) -> 33,830.2 | F154: 0.0 | G154: 26861.5 | H154: 26861.5 | I154: 26861.5 | J154: 26861.5 | K154: 37, 39, 40
B155: местный бюджет | C155: =SUM(D155:J155) -> 189,851.2 | D155: 48,575.0 | E155: 33,830.2 | F155: 0.0 | G155: 26,861.5 | H155: 26,861.5 | I155: 26,861.5 | J155: 26,861.5
B156: областной бюджет | C156: =SUM(D156:J156) -> 13,944.2 | D156: 13,944.2 | E156: 0.0 | F156: 0.0 | G156: 0 | H156: 0 | I156: 0 | J156: 0
B157: федеральный бюджет | C157: =SUM(D157:J157) -> 25,673.3 | D157: 25,673.3 | E157: 0.0 | F157: 0.0 | G157: 0 | H157: 0 | I157: 0 | J157: 0
A158: 3 Прочие нужды
B159: Всего, в том числе: | C159: 0 | D159: 0 | E159: 0 | F159: 0 | G159: 0 | H159: 0 | I159: 0 | J159: 0
B160: местный бюджет | C160: 0 | D160: 0 | E160: 0 | F160: 0 | G160: 0 | H160: 0 | I160: 0 | J160: 0
A161: Подпрограмма 5 : Содержание и капитальный ремонт общего имущества муниципального жилищного фонда на территории Североуральского городского округа
B162: Всего по подпрограмме 5, в том числе | C162: =C163+C164+C165 -> 64,356.1 | D162: 7,972.0 | E162: 9,021.6 | F162: 9,472.5 | G162: 9,472.5 | H162: 9,472.5 | I162: 9,472.5 | J162: 9,472.5
B163: областной бюджет | C163: =SUM(D163:J163) -> 0.0 | D163: =SUM(D177) -> 0.0 | E163: =SUM(E177) -> 0.0 | F163: 0.0 | G163: 0.0 | H163: 0.0 | I163: 0.0 | J163: 0.0
B164: федеральный бюджет | C164: =SUM(D164:J164) -> 0.0 | D164: =SUM(D178) -> 0.0 | E164: =SUM(E178) -> 0.0 | F164: 0.0 | G164: 0.0 | H164: 0.0 | I164: 0.0 | J164: 0.0
B165: местный бюджет | C165: =SUM(D165:J165) -> 64,356.1 | D165: =SUM(D179) -> 7,972.0 | E165: =SUM(E179) -> 9,021.6 | F165: 9,472.5 | G165: 9,472.5 | H165: 9,472.5 | I165: 9,472.5 | J165: 9,472.5
A166: 1. Капитальные вложения
B167: Всего по направлению «Капитальные вложения», всего, в том числе | C167: =SUM(C168) -> 0 | D167: =SUM(D168) -> 0 | E167: 0 | F167: 0 | G167: 0 | H167: 0 | I167: 0 | J167: 0
B168: местный бюджет | C168: 0 | D168: 0 | E168: 0 | F168: 0 | G168: 0 | H168: 0 | I168: 0 | J168: 0
A169: 1.1. Бюджетные инвестиции в объекты капитального строительства
B170: Бюджетные инвестиции в объекты капитального строительства всего, в том числе: | C170: =SUM(C171) -> 0 | D170: =SUM(D171) -> 0 | E170: 0 | F170: 0 | G170: 0 | H170: 0 | I170: 0 | J170: 0
B171: местный бюджет | C171: =SUM(D171:J171) -> 0 | D171: 0 | E171: 0 | F171: 0 | G171: 0 | H171: 0 | I171: 0 | J171: 0
A172: 1.2. Иные капитальные вложения
B173: Всего, в том числе: | C173: 0 | D173: =SUM(C171) -> 0 | E173: 0 | F173: 0 | G173: 0 | H173: 0 | I173: 0 | J173: 0
B174: местный бюджет | C174: =SUM(D174:J174) -> 0 | D174: 0 | E174: 0 | F174: 0 | G174: 0 | H174: 0 | I174: 0 | J174: 0
A175: 3 Прочие нужды
B176: Всего, в том числе: | C176: =SUM(C177:C179) -> 64,356.1 | D176: =SUM(D177:D179) -> 7,972.0 | E176: =SUM(E177:E179) -> 9,021.6 | F176: 9,472.5 | G176: 9,472.5 | H176: 9,472.5 | I176: 9,472.5 | J176: 9,472.5
B177: областной бюджет | C177: =SUM(D177:J177) -> 0.0 | D177: =SUM(D195) -> 0.0 | E177: =SUM(E195) -> 0.0 | F177: 0.0 | G177: 0.0 | H177: 0.0 | I177: 0.0 | J177: 0.0
B178: федеральный бюджет | C178: =SUM(D178:J178) -> 0.0 | D178: =SUM(D196) -> 0.0 | E178: =SUM(E196) -> 0.0 | F178: 0.0 | G178: 0.0 | H178: 0.0 | I178: 0.0 | J178: 0.0
B179: местный бюджет | C179: =SUM(D179:J179) -> 64,356.1 | D179: =D182+D185+D188+D191+D194 -> 7,972.0 | E179: 9,021.6 | F179: 9,472.5 | G179: 9,472.5 | H179: 9,472.5 | I179: 9,472.5 | J179: 9,472.5
A180: Мероприятие 14 - Ремонт общего имущества и квартир, в которых проживают отдельные категории граждан муниципального жилищного фонда в целях приведения в состояние, отвечающее требованиям пожарной безопасности, санитарно-техническим и иным требованиям
B181: Всего, из них | C181: =SUM(C182) -> 7,119.6 | D181: =SUM(D182) -> 422.0 | E181: =SUM(E182) -> 1,081.6 | F181: 1,123.2 | G181: 1,123.2 | H181: 1,123.2 | I181: 1,123.2 | J181: 1,123.2 | K181: 44
B182: местный бюджет | C182: =SUM(D182:J182) -> 7,119.6 | D182: 422.0 | E182: 1,081.6 | F182: 1,123.2 | G182: =SUM(F182) -> 1,123.2 | H182: =SUM(G182) -> 1,123.2 | I182: =SUM(H182) -> 1,123.2 | J182: =SUM(I182) -> 1,123.2
A183: Мероприятие 15 - Компенсация выпадающих доходов организациям, предоставляющим населению жилищные услуги по тарифам, не обеспечивающим возмещение издержек, по содержанию лифтового хозяйства
B184: Всего, из них | C184: =SUM(D184:J184) -> 11,344.0 | D184: =SUM(D185) -> 1,500.0 | E184: =SUM(E185) -> 1,575.0 | F184: 1,653.8 | G184: 1,653.8 | H184: 1,653.8 | I184: 1,653.8 | J184: 1,653.8 | K184: 46
B185: местный бюджет | C185: =SUM(D185:J185) -> 11,344.0 | D185: 1,500.0 | E185: 1,575.0 | F185: 1,653.8 | G185: =SUM(F185) -> 1,653.8 | H185: =SUM(G185) -> 1,653.8 | I185: =SUM(H185) -> 1,653.8 | J185: =SUM(I185) -> 1,653.8
A186: Мероприятие 16 - Компенсация выпадающих доходов организациям, предоставляющим населению жилищные услуги по тарифам, не обеспечивающим возмещение издержек, по содержанию муниципального жилищного фонда поселка Покровск-Уральский
B187: Всего, из них | C187: =SUM(D187:J187) -> 7,562.5 | D187: =SUM(D188) -> 1,000.0 | E187: =SUM(E188) -> 1,050.0 | F187: 1,102.5 | G187: 1,102.5 | H187: 1,102.5 | I187: 1,102.5 | J187: 1,102.5 | K187: 46
B188: местный бюджет | C188: =SUM(D188:J188) -> 7,562.5 | D188: 1,000.0 | E188: 1,050.0 | F188: 1,102.5 | G188: =SUM(F188) -> 1,102.5 | H188: =SUM(G188) -> 1,102.5 | I188: =SUM(H188) -> 1,102.5 | J188: =SUM(I188) -> 1,102.5
A189: Мероприятие 17- Предоставление субсидий на удешевление стоимости услуг по содержанию и ремонту муниципального специализированного жилищного фонда (общежитий)
B190: Всего, из них | C190: =SUM(C191) -> 9,830.0 | D190: =SUM(D191) -> 1,300.0 | E190: =SUM(E191) -> 1,365.0 | F190: 1,433.0 | G190: 1,433.0 | H190: 1,433.0 | I190: 1,433.0 | J190: 1,433.0 | K190: 46
B191: местный бюджет | C191: =SUM(D191:J191) -> 9,830.0 | D191: 1,300.0 | E191: 1,365.0 | F191: 1,433.0 | G191: =SUM(F191) -> 1,433.0 | H191: =SUM(G191) -> 1,433.0 | I191: =SUM(H191) -> 1,433.0 | J191: =SUM(I191) -> 1,433.0
A192: Мероприятие 18- Проведение капитального ремонта общего имущества многоквартирных домов Североуральского городского округа
B193: Всего, из них | C193: =SUM(C194:C196) -> 28,500.0 | D193: =SUM(D194:D196) -> 3,750.0 | E193: =SUM(E194:E196) -> 3,950.0 | F193: 4,160.0 | G193: 4,160.0 | H193: 4,160.0 | I193: 4,160.0 | J193: 4,160.0 | K193: 45
B194: местный бюджет | C194: =SUM(D194:J194) -> 28,500.0 | D194: 3,750.0 | E194: 3,950.0 | F194: 4,160.0 | G194: 4,160.0 | H194: 4,160.0 | I194: 4,160.0 | J194: 4,160.0
B195: областной бюджет | C195: =SUM(D195:J195) -> 0.0 | D195: 0.0 | E195: 0.0 | F195: 0.0 | G195: =F195*1 -> 0.0 | H195: =G195*1 -> 0.0 | I195: =H195*1 -> 0.0 | J195: =I195*1 -> 0.0
B196: федеральный бюджет | C196: =SUM(D196:J196) -> 0.0 | D196: 0.0 | E196: 0.0 | F196: 0.0 | G196: 0.0 | H196: 0.0 | I196: 0.0 | J196: 0.0
A197: Подпрограмма 6 : Комплексная экологическая программа Североуральского городского округа
B198: Всего по подпрограмме 6, в том числе | C198: =SUM(C199) -> 8,819.9 | D198: =SUM(D199) -> 1,205.0 | E198: =SUM(E199) -> 1,422.4 | F198: 1,238.5 | G198: 1,238.5 | H198: 1,238.5 | I198: 1,238.5 | J198: 1,238.5
B199: местный бюджет | C199: =SUM(D199:J199) -> 8,819.9 | D199: =SUM(D211) -> 1,205.0 | E199: =SUM(E211) -> 1,422.4 | F199: 1,238.5 | G199: 1,238.5 | H199: 1,238.5 | I199: 1,238.5 | J199: 1,238.5
A200: 1. Капитальные вложения
B201: Всего по направлению «Капитальные вложения», всего, в том числе | C201: 0 | D201: 0 | E201: 0 | F201: 0 | G201: 0 | H201: 0 | I201: 0 | J201: 0
... 78 more rows

Sheet Лист2

Sheet Лист3
